Cogmind - Beta 14 @@@ ROGUE MODE // 2025.01.07 @ 14:37:23 Player: acra Result: Destroyed by Y-72 Warden with Quantum Rifle Performance ------------- Evolutions (7) 3500 Regions Visited (11) 2200 Robots Destroyed (99) 495 Value Destroyed (3358) 3358 Prototype IDs (9) 180 Alien Tech Used (0) 0 Bonus (0) 0 TOTAL SCORE: 9733 Bonus ------- None Cogmind --------- Core Integrity 0/1300 Matter 182/800 Energy 98/100 System Corruption 0% Temperature Cool (9) Movement Core (50) Location -3/Research Parts ------- > --- POWER (2) -------- (None) > --- PROPULSION (6) --- (None) > --- UTILITY (11) ----- Experimental Matter Compressor Enhanced Optical Array Advanced Terrain Scan Processor Improved Targeting Computer Hacking Suite > --- WEAPON (2) ------- (None) > --- INVENTORY (5) ---- Plasma Rifle Plasma Rifle Remote Datajack Peak State ------------ > --- POWER ------------ (None) > --- PROPULSION ------- Field Propulsion Array > --- UTILITY ---------- Experimental Heat Sink Experimental Matter Compressor Enhanced Optical Array Improved Targeting Computer Quantum Capacitor Hacking Suite Authchip [Power] > --- WEAPON ----------- Quantum Rifle Long-range Proton Cannon > --- INVENTORY -------- Plasma Rifle Plasma Rifle Plasma Rifle Remote Datajack [Rating: 73] Favorites ----------- Power Improved Deuterium Engine Engine Improved Deuterium Engine Power Core Light Nuclear Core Propulsion Aluminum Leg Treads Light Treads Leg Aluminum Leg Wheel Armored Wheel Flight Unit Nuclear Pulse Array Utility Medium Storage Unit Device Improved Heat Sink Storage Medium Storage Unit Processor Targeting Computer Hackware Hacking Suite Protection Layered Medium Armor Plating Weapon Coil Gun Energy Gun Medium Laser Energy Cannon Heavy Plasma Cannon Ballistic Gun Coil Gun Ballistic Cannon Gauss Cannon Launcher Rocket Launcher Special Weapon Remote Datajack Impact Weapon Maul Slashing Weapon Katana Special Melee Weapon Datajack Build | -11 -10 -9 -9 -8 -7 -6 -6 -6 -5 -4 -3 ------- Run | Yrd Mat Mat Min Mat Fac Fac Low Low Fac Fac Res Slots Evolved 14 | . . 2 . 2 2 2 . . 2 2 2 Power 1 | . . . . . 1 . . . . . . Propulsion 4 | . . . . 1 . . . . . 1 2 Utility 9 | . . 2 . 1 1 2 . . 2 1 . Weapon . | . . . . . . . . . . . . Parts Attached 169 | 8 10 10 13 11 13 44 19 11 13 11 6 Power 19 | 1 3 1 2 1 3 3 2 1 1 1 . Engine 16 | 1 3 1 2 . 3 2 2 1 . 1 . Core 3 | . . . . 1 . 1 . . 1 . . Reactor . | . . . . . . . . . . . . Propulsion 35 | 2 . 6 2 5 2 6 3 1 5 3 . Treads 5 | 2 . 2 . . 1 . . . . . . Leg 20 | . . 4 2 3 . 5 3 . 2 1 . Wheel 6 | . . . . 2 1 1 . 1 . 1 . Hover . | . . . . . . . . . . . . Flight 4 | . . . . . . . . . 3 1 . Utility 63 | 2 2 2 . 3 5 27 9 2 2 6 3 Device 28 | 1 . . . 2 4 13 3 . 2 2 1 Storage 5 | 1 1 . . . . 1 . . . 1 1 Processor 7 | . 1 1 . . . 3 . . . 1 1 Hackware 3 | . . 1 . . . . . 1 . 1 . Protection 20 | . . . . 1 1 10 6 1 . 1 . Artifact . | . . . . . . . . . . . . Weapon 52 | 3 5 1 9 2 3 8 5 7 5 1 3 Energy Gun 20 | 1 3 . 4 1 . 2 2 2 3 . 2 Energy Cannon 3 | . . . . . . . . 1 . 1 1 Ballistic Gun 14 | 2 . . 3 1 1 4 1 . 2 . . Ballistic Cannon 1 | . . . . . . 1 . . . . . Launcher 4 | . . . 1 . . . 2 1 . . . Special Weapon 3 | . . . 1 . 1 1 . . . . . Impact Weapon 1 | . 1 . . . . . . . . . . Slashing Weapon 5 | . 1 . . . 1 . . 3 . . . Piercing Weapon . | . . . . . . . . . . . . Special Melee Weapon 1 | . . 1 . . . . . . . . . Unidentified Prototypes 7 | . . . . . 1 2 1 . 1 1 1 Corrupted Parts 6 | . . . . . . . 2 1 3 . . System Corruption 29 | . . . . . . . 9 4 16 . . Parts Lost 53 | . . 1 2 4 1 5 6 17 6 2 9 Power 6 | . . . 1 . . . 1 3 . . 1 Propulsion 18 | . . 1 . 2 1 1 3 4 4 1 1 Utility 14 | . . . . 1 . 3 1 6 . . 3 Weapon 15 | . . . 1 1 . 1 1 4 2 1 4 Highest Loss Streak 9 | . . 1 1 3 1 2 2 6 5 1 9 To Critical Strikes . | . . . . . . . . . . . . Average Slot Usage (%) 90 | . 99 99 99 99 93 97 99 66 35 51 32 Engine 7 | . 14 11 10 4 4 7 7 5 . 1 . Core 3 | . . . . 4 7 4 4 . 1 5 1 Treads 5 | . 28 13 . . 6 2 . . . . . Leg 10 | . . 7 22 21 5 10 19 2 1 . . Wheel 2 | . . . . 4 6 5 . 4 . 1 . Device 9 | . 6 . . 7 9 20 7 11 2 5 4 Storage 7 | . 14 11 11 9 7 6 6 5 . 1 3 Processor 15 | . 7 22 22 18 15 15 18 12 5 9 9 Hackware 6 | . . 11 11 9 7 6 6 8 5 5 7 Protection 2 | . . . . 1 4 1 13 1 . 1 . Energy Gun 6 | . 19 2 13 9 . . 5 5 4 . 1 Ballistic Gun 6 | . 4 . 4 8 10 10 5 . 4 8 1 Peak Build Rating 73 | 7 11 14 18 24 37 55 63 60 41 62 73 Average Rating 32 | 5 7 13 14 21 30 48 58 36 28 50 43 On Entrance 26 | . 7 11 14 16 23 37 54 60 13 37 42 Naked Turns . | . . . . . . . . . . . . Heaviest Build 64 | 12 26 26 26 29 33 64 57 53 11 31 18 Greatest Support 55 | 40 40 40 20 30 12 40 55 55 30 28 15 Greatest Overweight (x) 7 | . . 1 1 2 2 3 2 7 2 1 3 Average Overweight (x) . | . . . . . 1 . . 1 . . . Largest Inventory Capacity 10 | 8 10 10 10 10 10 10 10 10 5 10 5 Average Capacity 9 | 7 9 10 10 10 10 10 10 9 5 6 5 Most Carried 10 | 4 10 9 10 10 10 10 10 10 5 6 5 Average Carried 8 | 2 8 7 9 9 9 9 9 5 3 4 3 Final Capacity 10 | 8 10 10 10 10 10 10 10 5 5 5 5 Final Carried 10 | 4 9 9 10 10 10 10 10 4 5 5 3 Class Distribution -------------------- 64% | Scavenger-Mutant 35% | Mutant Dominant Class ---------------- Mutant | -10/Materials Mutant | -9/Materials Mutant | -9/Mines Scavenger-Mutant | -8/Materials Scavenger-Mutant | -7/Factory Scavenger-Mutant | -6/Factory Scavenger-Mutant | -6/Lower Caves Scavenger-Mutant | -6/Lower Caves Mutant | -5/Factory Mutant | -4/Factory Mutant | -3/Research Resources | -11 -10 -9 -9 -8 -7 -6 -6 -6 -5 -4 -3 ----------- Run | Yrd Mat Mat Min Mat Fac Fac Low Low Fac Fac Res Matter Collected 2859 | 164 196 133 168 174 187 1078 355 140 108 156 . Remotely . | . . . . . . . . . . . . Salvage Created 3912 | 27 420 408 163 362 213 1274 595 187 83 150 30 Parts 186 | 3 34 14 11 29 8 52 18 5 5 5 2 Haulers Intercepted 2 | . . 1 . . . . 1 . . . . Recyclers Shooed 9 | . 1 . . . 1 5 . . . 2 . Parts Field Recycled . | . . . . . . . . . . . . Retrieved Matter . | . . . . . . . . . . . . Parts Self-Destructed 13 | . . . . . . . 9 4 . . . Prevented 10 | . . . . . . . 10 . . . . Kills | -11 -10 -9 -9 -8 -7 -6 -6 -6 -5 -4 -3 ------- Run | Yrd Mat Mat Min Mat Fac Fac Low Low Fac Fac Res Combat Hostiles Destroyed 80 | . 13 7 8 9 2 19 11 7 3 . 1 Melee 10 | . 4 4 . . 1 . . 1 . . . Guns 54 | . 9 . 7 9 1 17 6 1 3 . 1 AOE 12 | . . . 1 . . 2 4 5 . . . Classes Destroyed 14 | 1 4 5 . 1 . 2 1 . . . . Builder 1 | . . . . . . 1 . . . . . Tunneler 1 | 1 . . . . . . . . . . . Hauler 2 | . . 1 . . . . 1 . . . . Recycler 6 | . . 1 . 1 1 2 . . . 1 . Mechanic 1 | . . 1 . . . . . . . . . Operator 4 | . 1 2 . 1 . . . . . . . Watcher 4 | . 1 1 . 1 . 1 . . . . . Swarmer 26 | . 6 . 3 3 . 4 4 2 3 . 1 Grunt 34 | . 7 5 4 3 . 9 6 . . . . Brawler 1 | . . . . . . . 1 . . . . Duelist 4 | . . 1 1 . . . . 2 . . . Sentry 9 | . . 1 . 2 2 3 . 1 . . . Hunter 2 | . . . . 1 . . . 1 . . . Programmer 4 | . . . . . . 3 . 1 . . . Best Kill Streak 7 | 1 5 6 3 4 1 3 4 7 2 1 1 Combat Bots Only 7 | . 5 2 3 3 1 3 4 7 2 . 1 Max Kills in Single Turn 3 | 1 1 1 1 1 1 2 3 1 1 1 1 Gunslinging . | . . . . . . . . . . . . Exploded 3 | . . . 1 . . 2 3 1 . . . Melee 1 | . 1 1 . . 1 . . 1 . . . Uniques/NPCs Destroyed . | . . . . . . . . . . . . Combat | -11 -10 -9 -9 -8 -7 -6 -6 -6 -5 -4 -3 -------- Run | Yrd Mat Mat Min Mat Fac Fac Low Low Fac Fac Res Hostile Shots Fired 1031 | . 72 29 31 57 69 202 107 180 75 75 134 Missed 344 | . 13 9 13 13 22 63 24 68 33 37 49 Damage Taken 9941 | . 544 226 276 638 356 1586 1605 1454 640 708 1908 Core 2964 | . 133 11 62 87 116 283 191 365 288 121 1307 Absorbed by Shields 33 | . . . . . . 33 . . . . . Ignored by Resistances 126 | . . . . . . 126 . . . . . Regen/Repaired (Parts) 27 | . . . . . 27 . . . . . . Core Remaining (%) 69 | 100 46 . 81 84 83 . . 1 71 89 . Volleys Fired 256 | 2 29 . 20 38 6 80 38 23 13 3 4 Largest 2 | 2 2 . 2 2 2 2 2 2 2 2 1 Hottest 165 | 70 100 . 165 91 91 80 83 119 150 46 94 Shots Fired 476 | 4 57 . 32 70 10 159 76 39 19 6 4 Gun 445 | 4 57 . 27 70 8 154 73 23 19 6 4 Cannon 3 | . . . . . . 3 . . . . . Launcher 20 | . . . 1 . . . 3 16 . . . Special 8 | . . . 4 . 2 2 . . . . . Kinetic 263 | 2 8 . 15 35 5 154 36 . 2 6 . Thermal 140 | 2 49 . 16 35 3 . . 14 17 . 4 Explosive 20 | . . . 1 . . . 3 16 . . . Electromagnetic 49 | . . . . . . 3 37 9 . . . Robot Hit Streak 17 | 1 12 . 7 17 9 8 13 5 5 7 9 Robot Miss Streak 5 | 2 3 . 5 2 . 5 3 3 3 . 1 Penetration Max 2 | . . . . . . 2 1 . . . . Secondary Targets 10 | . 2 . . 2 . 3 2 . 1 . . Max Gunslinging Chain 1 | . 1 . . 1 . 1 1 . 1 . . Shots Hit Robots 352 | 1 42 22 26 59 14 95 51 24 9 6 3 Core Hits 189 | 1 22 5 25 25 6 44 31 20 3 4 3 Critical Kills 4 | . . 1 . . . 3 . . . . . Critical Parts Destroyed 6 | . . 3 . . . 2 1 . . . . Critical Strikes 19 | . 4 4 1 2 . 6 1 1 . . . Burn 7 | . 4 . 1 2 . . . . . . . Destroy 7 | . . . . . . 6 1 . . . . Smash 4 | . . 4 . . . . . . . . . Sever 1 | . . . . . . . . 1 . . . Melee Attacks 75 | . 26 27 2 . 7 . . 13 . . . Impact 25 | . . 25 . . . . . . . . . Slashing 46 | . 26 . . . 7 . . 13 . . . Piercing . | . . . . . . . . . . . . Sneak Attacks 9 | . . 7 2 . . . . . . . . Combat Hostiles . | . . . . . . . . . . . . Follow-up Attacks . | . . . . . . . . . . . . Damage Inflicted 8656 | 12 618 1042 447 1018 323 2554 1393 868 181 83 117 Guns 5903 | 12 425 . 341 1018 129 2353 1077 168 181 83 116 Cannons 60 | . . . . . . 60 . . . . . Explosions 1046 | . . . 70 . . 118 316 542 . . . Melee 1562 | . 187 1035 . . 182 . . 158 . . . Ramming 60 | . 6 7 11 . 12 23 . . . . 1 Kinetic 3790 | . 42 . 152 490 78 2359 576 . 10 83 . Thermal 1719 | 12 383 . 214 528 51 118 . 126 171 . 116 Explosive 928 | . . . 70 . . . 316 542 . . . Electromagnetic 597 | . . . . . . 54 501 42 . . . Impact 1035 | . . 1035 . . . . . . . . . Slashing 527 | . 187 . . . 182 . . 158 . . . Piercing . | . . . . . . . . . . . . Highest Corruption 24 | . 2 . . . . 3 16 24 16 . . Average Corruption 10 | . 2 . . . . 2 12 23 15 . . Corruption Purged . | . . . . . . . . . . . . Corruption Blocked . | . . . . . . . . . . . . Effects 97 | . 8 . . . . 18 30 26 15 . . Message Errors 21 | . . . . . . 3 9 4 5 . . Matter Fused 16 | . 1 . . . . 3 3 7 2 . . Heat Flow Errors 13 | . 3 . . . . 1 4 3 2 . . Energy Discharges 13 | . 1 . . . . 2 3 5 2 . . Parts Rejected 2 | . . . . . . . 2 . . . . Parts Fused 1 | . 1 . . . . . . . . . . Data Loss (minor) 10 | . . . . . . 4 4 1 1 . . Data Loss (major) 4 | . 1 . . . . . . 3 . . . Misfires 6 | . . . . . . 3 2 1 . . . Alerts 2 | . . . . . . . 1 1 . . . Misdirections 2 | . . . . . . . . . 2 . . Weapon Failures 7 | . 1 . . . . 2 2 1 1 . . Overload Shots . | . . . . . . . . . . . . Overflow Damage 506 | . . 465 . . . . 3 38 . . . Projectiles . | . . . . . . . . . . . . Explosions 3 | . . . . . . . 3 . . . . Melee 503 | . . 465 . . . . . 38 . . . Knockbacks 7 | . . 6 . . . 1 . . . . . Impact 7 | . . 6 . . . 1 . . . . . Kinetic . | . . . . . . . . . . . . Secondary . | . . . . . . . . . . . . Self-Inflicted Damage 32 | . . . . . 6 . . 26 . . . Shots 1 | . . . . . . . . 1 . . . Rammed 3 | . 1 . . . 1 . . . . . 1 Targets Rammed 12 | . 1 4 3 . 1 2 . . . . 1 Kicked 9 | . . 4 3 . . 2 . . . . . Crushed . | . . . . . . . . . . . . Highest Temperature 447 | 40 339 . 419 342 20 163 447 361 185 . . Average Temperature 132 | 20 118 . 142 173 11 42 142 183 39 . . Received Heat Transfer 2217 | . 168 111 105 243 102 507 723 114 9 117 18 Effects 14 | . 3 . 3 1 . . 7 . . . . Shutdowns 2 | . . . . . . . 2 . . . . Energy Bleed 1 | . . . . . . . 1 . . . . Interference 8 | . 3 . 3 1 . . 1 . . . . Damage (major) 3 | . . . . . . . 3 . . . . Siege Activations . | . . . . . . . . . . . . Robots Corrupted 7 | . . 7 . . . . . . . . . Combat Hostiles 3 | . . 3 . . . . . . . . . Parts Fried 13 | . . 12 . . . . 1 . . . . Impact Corruptions 16 | . . 16 . . . . . . . . . Robots Melted . | . . . . . . . . . . . . Combat Hostiles . | . . . . . . . . . . . . Parts Melted 6 | . 1 1 2 1 . . . 1 . . . Heat Transferred 4238 | 37 1406 . 545 1295 111 100 . 222 374 . 148 Parts Sabotaged . | . . . . . . . . . . . . Parts Stolen . | . . . . . . . . . . . . Parts Stripped . | . . . . . . . . . . . . Power Chain Reactions 1 | . . . . . . 1 . . . . . Alert | -11 -10 -9 -9 -8 -7 -6 -6 -6 -5 -4 -3 ------- Run | Yrd Mat Mat Min Mat Fac Fac Low Low Fac Fac Res Peak Influence 390 | 5 301 390 139 309 102 331 . . 105 196 192 Initial 126 | . 3 126 73 48 52 . . . . 51 97 Average 122 | 1 144 240 82 163 51 161 . . 52 95 103 Maximum Alert Level 1 | . 1 1 . 1 . 1 . . . . . Low Security (%) 76 | 100 71 24 100 83 100 51 . . 100 100 100 Level 1 23 | . 28 75 . 16 . 48 . . . . . Level 2 . | . . . . . . . . . . . . Level 3 . | . . . . . . . . . . . . Level 4 . | . . . . . . . . . . . . Level 5 . | . . . . . . . . . . . . High Security . | . . . . . . . . . . . . Max Security . | . . . . . . . . . . . . Squads Dispatched 18 | . 2 2 . 2 2 7 . . 1 1 1 Investigation 5 | . 1 . . . 1 2 . . 1 . . Extermination 4 | . . . . . 1 3 . . . . . Reinforcement 8 | . 1 2 . 1 . 2 . . . 1 1 Assault . | . . . . . . . . . . . . Garrison 1 | . . . . 1 . . . . . . . Intercept . | . . . . . . . . . . . . Searches Triggered . | . . . . . . . . . . . . Construction Impeded 1 | . . . . . . 1 . . . . . Haulers Reinforced 1 | . . . . . . 1 . . . . . Active Scanning Responses . | . . . . . . . . . . . . Cargo Convoy Interrupts . | . . . . . . . . . . . . Stealth | -11 -10 -9 -9 -8 -7 -6 -6 -6 -5 -4 -3 --------- Run | Yrd Mat Mat Min Mat Fac Fac Low Low Fac Fac Res Distress Signals 11 | . 3 3 . 2 . 3 . . . . . Communications Jammed . | . . . . . . . . . . . . Distress Signals . | . . . . . . . . . . . . Times Spotted 162 | . 21 13 9 16 4 29 15 7 11 19 18 Peak Tracking Total 10 | . 7 4 3 4 1 5 5 4 4 9 10 Tactical Retreats 18 | . 3 1 1 2 . 3 2 . 1 3 2 Traps | -11 -10 -9 -9 -8 -7 -6 -6 -6 -5 -4 -3 ------- Run | Yrd Mat Mat Min Mat Fac Fac Low Low Fac Fac Res Traps Triggered 5 | . 2 . . . 1 . . . 1 . 1 Indirectly . | . . . . . . . . . . . . Trap Hack Attempts . | . . . . . . . . . . . . Triggered . | . . . . . . . . . . . . Disarmed . | . . . . . . . . . . . . Reprogrammed . | . . . . . . . . . . . . Reused . | . . . . . . . . . . . . Traps Extracted . | . . . . . . . . . . . . Installed . | . . . . . . . . . . . . Triggered . | . . . . . . . . . . . . Machines | -11 -10 -9 -9 -8 -7 -6 -6 -6 -5 -4 -3 ---------- Run | Yrd Mat Mat Min Mat Fac Fac Low Low Fac Fac Res Machines Disabled 4 | . . . . . . 4 . . . . . Max in Single Turn 1 | . . . . . . 1 . . . . . Garrison Access 1 | . . . . . . . . . . 1 . Machines Repaired . | . . . . . . . . . . . . Machines Dismantled . | . . . . . . . . . . . . Machines Sabotaged . | . . . . . . . . . . . . Overloaded Fab Kills . | . . . . . . . . . . . . Hacking | -11 -10 -9 -9 -8 -7 -6 -6 -6 -5 -4 -3 --------- Run | Yrd Mat Mat Min Mat Fac Fac Low Low Fac Fac Res Machines Accessed 19 | . 2 1 . 5 5 2 . . 2 2 . Terminals 11 | . 2 . . 5 1 1 . . 1 1 . Fabricators 2 | . . . . . 1 . . . 1 . . Repair Stations 1 | . . . . . 1 . . . . . . Recycling Units 4 | . . 1 . . 2 1 . . . . . Scanalyzers . | . . . . . . . . . . . . Garrison Access 1 | . . . . . . . . . . 1 . Total Hacks 43 | . 3 3 . 14 9 6 . . 4 4 . Successful 20 | . 2 3 . 8 5 . . . 1 1 . Failed 23 | . 1 . . 6 4 6 . . 3 3 . Catastrophic 11 | . 1 . . 2 3 3 . . 1 1 . Database Lockouts . | . . . . . . . . . . . . Manual 18 | . 2 . . 7 1 3 . . 2 3 . Terminals 26 | . 3 . . 14 1 3 . . 2 3 . Fabricators 4 | . . . . . 2 . . . 2 . . Repair Stations 2 | . . . . . 2 . . . . . . Recycling Units 10 | . . 3 . . 4 3 . . . . . Scanalyzers . | . . . . . . . . . . . . Garrison Access 1 | . . . . . . . . . . 1 . Terminal Hacks 10 | . 2 . . 8 . . . . . . . Part Schematic 1 | . . . . 1 . . . . . . . Robot Analysis 1 | . . . . 1 . . . . . . . Prototype ID Bank 1 | . . . . 1 . . . . . . . Emergency Access Points 1 | . . . . 1 . . . . . . . Terminal Index 2 | . 1 . . 1 . . . . . . . Alert Level 1 | . . . . 1 . . . . . . . Locate Traps 1 | . . . . 1 . . . . . . . Hauler Manifests 1 | . . . . 1 . . . . . . . Zone Layout 1 | . 1 . . . . . . . . . . Fabricator Hacks 2 | . . . . . 1 . . . 1 . . Network Status 1 | . . . . . . . . . 1 . . Load Schematic 1 | . . . . . 1 . . . . . . Repair Station Hacks 2 | . . . . . 2 . . . . . . Scan Component 1 | . . . . . 1 . . . . . . Repair 1 | . . . . . 1 . . . . . . Recycling Unit Hacks 5 | . . 3 . . 2 . . . . . . Process 2 | . . 2 . . . . . . . . . Report Inventory 2 | . . 1 . . 1 . . . . . . Retrieve Components 1 | . . . . . 1 . . . . . . Scanalyzer . | . . . . . . . . . . . . Garrison Access Hacks 1 | . . . . . . . . . . 1 . Seal Access 1 | . . . . . . . . . . 1 . Unauthorized Hacks . | . . . . . . . . . . . . Terminals . | . . . . . . . . . . . . Fabricators . | . . . . . . . . . . . . Repair Stations . | . . . . . . . . . . . . Recycling Units . | . . . . . . . . . . . . Scanalyzers . | . . . . . . . . . . . . Garrison Access . | . . . . . . . . . . . . Data Cores Recovered . | . . . . . . . . . . . . Used . | . . . . . . . . . . . . Hacking Detections 14 | . 2 . . 3 4 2 . . 2 1 . Full Trace Events 2 | . . . . . . 2 . . . . . Feedback Events 1 | . . . . . . 1 . . . . . Corruption 1 | . . . . . . 1 . . . . . Feedback Blocked . | . . . . . . . . . . . . Robot Schematics Acquired . | . . . . . . . . . . . . Robots Built . | . . . . . . . . . . . . Authchips . | . . . . . . . . . . . . Time . | . . . . . . . . . . . . Total Robot Build Rating . | . . . . . . . . . . . . Part Schematics Acquired 1 | . . . . 1 . . . . . . . Parts Built . | . . . . . . . . . . . . Authchips . | . . . . . . . . . . . . Time . | . . . . . . . . . . . . Total Part Build Rating . | . . . . . . . . . . . . Parts Repaired 1 | . . . . . 1 . . . . . . Time 32 | . . . . . 32 . . . . . . Parts Recycled . | . . . . . . . . . . . . Recycled Matter . | . . . . . . . . . . . . Retrieved Matter . | . . . . . . . . . . . . Retrieved Components 3 | . . . . . 3 . . . . . . Parts Scanalyzed . | . . . . . . . . . . . . Part Schematics Acquired . | . . . . . . . . . . . . Parts Damaged . | . . . . . . . . . . . . Bothacking | -11 -10 -9 -9 -8 -7 -6 -6 -6 -5 -4 -3 ------------ Run | Yrd Mat Mat Min Mat Fac Fac Low Low Fac Fac Res Used RIF Installer . | . . . . . . . . . . . . Robots Hacked 6 | . . 2 1 . 2 1 . . . . . Non-combat 6 | . . 2 1 . 2 1 . . . . . Combat . | . . . . . . . . . . . . Robot Hacks Applied 6 | . . 2 1 . 2 1 . . . . . parse_system 1 | . . . 1 . . . . . . . . no_distress 2 | . . 1 . . 1 . . . . . . find_fabricator 1 | . . . . . 1 . . . . . . find_recycling 1 | . . . . . . 1 . . . . . check_alert 1 | . . 1 . . . . . . . . . Relay Couplers Released . | . . . . . . . . . . . . Fabnet Peak Effective % . | . . . . . . . . . . . . Robots Rewired . | . . . . . . . . . . . . Allies Hacked . | . . . . . . . . . . . . Hacks Repelled . | . . . . . . . . . . . . Allies | -11 -10 -9 -9 -8 -7 -6 -6 -6 -5 -4 -3 -------- Run | Yrd Mat Mat Min Mat Fac Fac Low Low Fac Fac Res Total Allies 2 | . . . 1 . . . . 1 . . . Largest Group 1 | . . . 1 1 . . . 1 . . . Highest-Rated Group 165 | . . . 31 31 . . . 165 . . . Highest-Rated Ally 165 | . . . 31 31 . . . 165 . . . Total Orders . | . . . . . . . . . . . . Ally Attacks 6 | . . . . 6 . . . . . . . Total Damage 85 | . . . . 85 . . . . . . . Kills . | . . . . . . . . . . . . Allies Corrupted . | . . . . . . . . . . . . Allies Melted . | . . . . . . . . . . . . Intel | -11 -10 -9 -9 -8 -7 -6 -6 -6 -5 -4 -3 ------- Run | Yrd Mat Mat Min Mat Fac Fac Low Low Fac Fac Res Robot Analysis Total 1 | . . . . 1 . . . . . . . Derelict Logs Recovered 2 | . . . 1 . . . 1 . . . . Drone Launches . | . . . . . . . . . . . . Drone Recoveries . | . . . . . . . . . . . . Exploration | -11 -10 -9 -9 -8 -7 -6 -6 -6 -5 -4 -3 ------------- Run | Yrd Mat Mat Min Mat Fac Fac Low Low Fac Fac Res Turns Passed 6595 | 129 614 413 780 454 920 1386 736 600 243 212 108 Spaces Moved 4145 | 67 243 159 507 234 563 707 404 374 332 400 155 Core 210 | 1 . . . . . . . 100 22 . 87 Treads 407 | 66 243 98 . . . . . . . . . Legs 1366 | . . 61 507 52 . 311 404 11 20 . . Wheels 1442 | . . . . 182 563 396 . 263 . 38 . Hover . | . . . . . . . . . . . . Flight 720 | . . . . . . . . . 290 362 68 Fastest Speed 34 | 50 160 160 120 105 105 110 120 50 34 37 40 Average Speed 110 | 158 160 173 132 116 119 122 124 106 46 45 51 Slowest Speed 400 | 160 160 240 190 260 120 190 260 400 150 120 200 Overloaded Moves . | . . . . . . . . . . . . Propulsion Burnouts . | . . . . . . . . . . . . Robots Hopped 4 | . . . . . . . . . 2 2 . Cave-ins Triggered 1 | . . . . . . . . 1 . . . Exploration Rate (%) 29 | 4 41 12 94 26 10 16 57 60 8 18 9 Regions Visited 11 Branch Regions 3 Pre-discovered Areas 2 | . . . 1 . . . 1 . . . . Known Exits Taken 5 | . . 1 1 1 1 1 . . . . . Unknown Exits Taken 6 | 1 1 . . . . . 1 1 1 1 . Scrap Searched 5 | . . . 1 . . . 3 1 . . . Spaces Dug 6 | . . . . . . . . 6 . . . Terrain Destroyed 94 | . . . 6 . . 12 19 57 . . . Melee 6 | . . . . . . . . 6 . . . Projectile 11 | . . . . . . 7 4 . . . . AOE 77 | . . . 6 . . 5 15 51 . . . Terrain Rammed . | . . . . . . . . . . . . Walls Destroyed . | . . . . . . . . . . . . Machines Disabled . | . . . . . . . . . . . . Actions | -11 -10 -9 -9 -8 -7 -6 -6 -6 -5 -4 -3 --------- Run | Yrd Mat Mat Min Mat Fac Fac Low Low Fac Fac Res Total 5549 | 83 363 243 585 346 792 1069 559 514 395 422 178 Wait 750 | 1 34 34 20 52 187 199 86 90 33 2 12 Move 4126 | 66 242 158 506 233 562 706 403 373 327 395 155 Hop 4 | . . . . . . . . . 2 2 . Pick Up 60 | 5 9 4 8 5 5 10 7 1 5 1 . Fast Attach 70 | 7 4 4 2 5 5 16 5 1 8 9 4 Attach 38 | . 1 5 4 2 2 6 4 7 3 2 2 Detach 9 | . . 1 4 . 1 2 . . . 1 . Swap 61 | 1 5 1 7 4 6 22 10 3 2 . . Drop 88 | 1 12 5 9 7 10 26 6 3 2 7 . Fire 256 | 2 29 . 20 38 6 80 38 23 13 3 4 Melee 75 | . 26 27 2 . 7 . . 13 . . . Ram 2 | . . . . . 1 . . . . . 1 Kick 9 | . . 4 3 . . 2 . . . . . Crush 1 | . 1 . . . . . . . . . . Escape Stasis . | . . . . . . . . . . . . Rewire . | . . . . . . . . . . . . Trap . | . . . . . . . . . . . . Miscellaneous . | . . . . . . . . . . . . Route ------- -11/Scrapyard -10/Materials -9/Materials -9/Mines -8/Materials -7/Factory -6/Factory -6/Lower Caves -6/Lower Caves (discovered 2 exits: *Fac x2) -5/Factory -4/Factory -3/Research (discovered 1 exit: [*Res]) History --------- Turn | Location | Event 14 | -11/Scrapyard | Discovered new exit (range 16) 130 | -11/Scrapyard | Entered Materials 308 | -10/Materials | Build established: Mutant 651 | -10/Materials | Core integrity fell below 50% 705 | -10/Materials | Discovered new exit (range 7) 744 | -10/Materials | Entered another Materials area 744 | -9/Materials | Evolved 2 slots: Utility x2 1054 | -9/Materials | Discovered new exit (range 8) 1155 | -9/Materials | Identified exit to Mines 1157 | -9/Materials | Entered Mines 1225 | -9/Mines | Learned location of Zion (-6) 1289 | -9/Mines | Received a Rocket Launcher from a helpful Derelict 1489 | -9/Mines | Found a damaged Exp. Sensor Array with a note attached 1492 | -9/Mines | Found Prototype Device 1566 | -9/Mines | A weapon hastily lodged in a ceiling crevice suddenly fell to the ground 1926 | -9/Mines | Escorted by a lone wolf Derelict 1927 | -9/Mines | Discovered new exit (range 5) 1935 | -9/Mines | Identified exit to Materials 1937 | -9/Mines | Entered Materials 1937 | -8/Materials | Accompanied by 1 ally 1937 | -8/Materials | Evolved 2 slots: Propulsion x1, Utility x1 1938 | -8/Materials | Garrison activated, responded to threat 2160 | -8/Materials | Lost 3 parts (2n1w) 2265 | -8/Materials | Build established: Scavenger-Mutant 2366 | -8/Materials | Discovered new exit (range 13) 2377 | -8/Materials | Identified exit to Factory 2391 | -8/Materials | Entered Factory 2391 | -7/Factory | Evolved 2 slots: Power x1, Utility x1 2525 | -7/Factory | Discovered new exit (range 10) 2536 | -7/Factory | Identified exit to Factory 2975 | -7/Factory | Identified Exp. Sensor Array 3078 | -7/Factory | Repaired Arm. Wheel 3311 | -7/Factory | Entered another Factory area 3311 | -6/Factory | Evolved 2 slots: Utility x2 4629 | -6/Factory | Discovered new exit (range 12) 4673 | -6/Factory | Identified exit to Lower Caves 4697 | -6/Factory | Entered Lower Caves 4839 | -6/Lower Caves | System corruption reached 10% 5019 | -6/Lower Caves | Encountered a Warlord checkpoint 5220 | -6/Lower Caves | Core integrity fell below 50% 5286 | -6/Lower Caves | Discovered new exit (range 15) 5433 | -6/Lower Caves | Entered another Lower Caves area 5436 | -6/Lower Caves | Discovered new exit (range 6) 5507 | -6/Lower Caves | Attracted the attention of an 0b10 checkpoint 5512 | -6/Lower Caves | Lost 5 parts (2p1n1u1w) 5565 | -6/Lower Caves | Destroyed 7 combat bots 5566 | -6/Lower Caves | Lost 5 parts (2n2u1w) 5836 | -6/Lower Caves | Spotted B-75 Beast 5950 | -6/Lower Caves | Core integrity fell below 20% 5993 | -6/Lower Caves | Lost 6 parts (1p1n3u1w) 6007 | -6/Lower Caves | Crushed by falling debris 6021 | -6/Lower Caves | ME-RLN showed up to help 6028 | -6/Lower Caves | ME-RLN revealed a hidden path 6033 | -6/Lower Caves | Entered Factory 6033 | -5/Factory | Evolved 2 slots: Utility x2 6048 | -5/Factory | System corruption reached 10% 6137 | -5/Factory | Lost 5 parts (3n2w) 6230 | -5/Factory | Discovered new exit (range 13) 6276 | -5/Factory | Entered another Factory area 6276 | -4/Factory | Evolved 2 slots: Propulsion x1, Utility x1 6366 | -4/Factory | Spotted B-86 Titan 6485 | -4/Factory | Discovered new exit (range 9) 6488 | -4/Factory | Entered Research 6488 | -3/Research | Evolved 2 slots: Propulsion x2 6496 | -3/Research | Found Quantum Capacitor 6517 | -3/Research | Spotted B-86 Titan 6558 | -3/Research | Core integrity fell below 50% 6560 | -3/Research | Build established: Mutant 6569 | -3/Research | Core integrity fell below 20% 6583 | -3/Research | Lost 9 parts (1p1n3u4w) 6594 | -3/Research | Discovered new exit (range 16) 6596 | -3/Research | Destroyed by Y-72 Warden with Quantum Rifle Last Messages --------------- Slug penetrates S-43 Plague. S-43 Plague suffers critical hit (Destroy). R-10 Processor collects Xenon Bombardment Thruster. Penetrated by Slug. Slug penetrates Wall. Penetrated by Slug. Slug penetrates Wall. Terminal disabled. O-24 Administrator: "IFF HANDSHAKE FAILED. SECURING TERMINAL." Penetrated by Slug. K-01 Serf cleans the Catalytron. Slammed into K-01 Serf. K-01 Serf cleans the Catalytron. U-05 Engineer works on Catalytron. K-01 Serf cleans the Catalytron. Acquired Adv. Terrain Scan Processor. T-07 Excavator destroyed. EXIT=FOUND Map ----- +----------------------------------------------------+ | ?????????????????????????????????????????????????? | | ?????????????????????????????????????????????????? | | ?????????????????????????????????????????????????? | | ?????????????????????????????????????????????????? | | ?????????????????????????????????????????????????? | | ?????????????????????????????????????????????????? | | ?????????????????????????????????????????????????? | | ?????????????????????????????????????????????????? | | ?????????????????????????????????????????????????? | | ?????????????????????????????????????????????????? | | ??????????????????????? #???????????????????????? | | ????????????????????? u???????????????????????? | | ????????????????????# ???????????????????????? | | ????????????????????# ???????????????????????? | | ????????????????????# Y ???????????????????????? | | ????????????????????? ???????????????????????? | | ????????????????????? ???????????????????????? | | ?????????????????????# #??????????????????????? | | ?????????????????????# u#??????????????????????? | | ?????????????????????# ###????????????????????? | | ?????????????????????# k ?????????????????????? | | ?????????????????????# ?????????????????????? | | ?????????????????????# ??????????????????????? | | ?????????????????????# ??????????????????????? | | ?????????????????????# #??????????????????????? | | ?????????????????????# @#??????????????????????? | | ?????????????????????# #??????????????????????? | | ?????????????????????+ #??????????????????????? | | ?????????????????????# #??????????????????????? | | ?????????????????????# #??????????????????????? | | ?????????????????????# ###########????????????? | | ?????????????????????# # #????????????? | | ?????????????????????# # #????????????? | | ?????????????????????# s# #????????????? | | ?????????????????????# ss/ !! #????????????? | | ?????????????????????# # !! #????????????? | | ?????????????????????# R # ! #????????????? | | ??????????????????? #*= ! #????????????? | | ????????????????? t###%! #????????????? | | ????????????????# ??#/#########???###+####+# | | ????????????????# ??# #???????????# | | ????????????????# ##### ??# #???????????# | | ????????????????# ????# ??# ############# | | ????????????????#?????# ??# | | ??????????????????????#???# | | ??????????????????????????# | | ??????????????????????????# """ """ | | ??????????????????????????# """ """ | | ??????????????????????????# """ """ !!! | | ??????????????????????????# !! | +----------------------------------------------------+ Best States ------------- Heat Dissipation 72 Energy Generation 26 Energy Capacity 455 Matter Stores 300 Matter Capacity 800 Sight Range 22 Robot Scan Range 20 Terrain Scan Range 24 Terrain Scan Density 210 Armor Coverage 675 Resistance: KI 30 Resistance: TH 20 Resistance: EM 25 Weapon Shielding 66 Evasion (%) 63 Targeting Accuracy 6 Recoil Reduction 2 Energy Filtering 30 Offensive Hacking 10 Authchip Count 1 Item Schematics ----------------- Hacking Suite | -8/Materials | Hacked Robot Schematics ------------------ None Fabricated ------------ Nothing Alien Tech Used ----------------- None Achievements -------------- None Challenges ------------ None Game ------ Seed ArmorZhirovTrap Manual? 0 Play Time 01:21:23 Cumulative 25.9 hours Start 2025.01.07 @ 13:11:23 End 2025.01.07 @ 14:37:23 Sessions 1 Manual Loads 0 Difficulty Rogue Special Mode None Game No. 35 Rogue 18 Adventurer 16 Explorer 1 Win Type - Total 3 Types 3/0/0/0/0/0/0/0/0 Lore% 8 Gallery% 32 Achievement% 31 Wizard Run 0 Options --------- Layout 1 ASCII 0 Keyboard 0 Movement Arrows Keybinds 0 Fullscreen 1 Font 24/Smallcaps Map View 50x35 Zoom Use 0% Tactical HUD 0 Map Filters NONE Filters NONE Steam 1 RUN: 241ae0c2-2db1-4d77-a366-07b885114e5b